bitfinex/quotes_BTCUSD_20250604
["timestamp","ask_amount","ask_price","bid_price","bid_amount"]
[1749025987906,0.47768254,105480.0,105470.0,0.2932]
[1749025988120,0.45991721,105480.0,105470.0,0.2942]
[1749025988331,0.45991721,105480.0,105470.0,0.2962]
[1749025989514,0.47768255,105480.0,105470.0,0.2962]
[1749025989697,0.45991721,105480.0,105470.0,0.2962]
[1749025990139,0.47768255,105480.0,105470.0,0.2962]
[1749025990408,0.45991721,105480.0,105470.0,0.2962]
[1749025990820,0.45991721,105480.0,105470.0,0.90548]
[1749025991380,0.47768255,105480.0,105470.0,0.90548]
[1749025991602,0.45991721,105480.0,105470.0,0.90548]
[1749025992954,0.47601721,105480.0,105470.0,0.90548]
[1749025993391,0.49378255,105480.0,105470.0,0.90548]
[1749025993759,0.47601721,105480.0,105470.0,0.90548]
[1749025993969,0.49378255,105480.0,105470.0,0.5214]
[1749025994189,0.49211721,105480.0,105470.0,0.90548]
[1749025994609,0.50988255,105480.0,105470.0,0.90548]
[1749025994833,0.47768255,105480.0,105470.0,0.92078]
[1749025995048,0.49544755,105480.0,105470.0,0.92078]
[1749025995252,0.47768255,105480.0,105470.0,0.92078]
[1749025996327,0.47768255,105480.0,105470.0,0.92074]
[1749025997000,0.47768255,105480.0,105470.0,0.93664]
[1749025997847,0.47768255,105480.0,105470.0,0.64348]
[1749025998066,0.47768255,105480.0,105470.0,0.93664]
[1749025999125,0.49544751,105480.0,105470.0,0.93664]
[1749025999346,0.47768255,105480.0,105470.0,0.93664]
[1749025999554,0.49544751,105480.0,105470.0,0.93664]
[1749025999765,0.48675013,105480.0,105470.0,0.93664]
[1749025999982,0.47768255,105480.0,105470.0,0.93664]
[1749026001028,0.49544751,105480.0,105470.0,0.93664]
[1749026001241,0.48675013,105480.0,105470.0,0.93664]
[1749026001465,0.47768255,105480.0,105470.0,0.93664]
[1749026001672,0.49544751,105480.0,105470.0,0.93664]
[1749026001906,0.48675013,105480.0,105470.0,0.92074]
[1749026002115,0.47768255,105480.0,105470.0,0.92074]
[1749026002321,0.49544751,105480.0,105470.0,0.92074]
[1749026002558,0.47768255,105480.0,105470.0,0.90544]
[1749026002763,0.50998255,105480.0,105470.0,0.9054]
[1749026002977,0.52032349,105480.0,105470.0,0.9054]
[1749026003220,0.50255821,105480.0,105470.0,0.9054]
[1749026004288,0.50452352,105480.0,105470.0,0.9054]
[1749026004517,0.48675821,105480.0,105470.0,0.9054]
[1749026004725,0.47768255,105480.0,105470.0,0.9054]
[1749026004930,0.49544786,105480.0,105470.0,0.9054]
[1749026005146,0.48675821,105480.0,105470.0,0.9054]
[1749026005355,0.47768255,105480.0,105470.0,0.9054]
[1749026005787,0.52624786,105480.0,105470.0,0.9054]
[1749026005994,0.51755821,105480.0,105470.0,0.9054]
[1749026006199,0.53532352,105480.0,105470.0,0.9054]
[1749026006403,0.51755821,105480.0,105470.0,0.9054]
[1749026007044,0.54401317,105480.0,105470.0,0.9054]
[1749026007248,0.55309219,105480.0,105470.0,0.9054]
[1749026007455,0.53532688,105480.0,105470.0,0.9054]
[1749026008291,0.53532688,105480.0,105470.0,0.5214]
[1749026008499,0.5530928,105480.0,105470.0,0.9052]
[1749026008685,0.55309281,105480.0,105470.0,0.9052]
[1749026008856,0.53532688,105480.0,105470.0,0.9052]
[1749026009690,0.55309298,105480.0,105470.0,0.9052]
[1749026009930,0.53532688,105480.0,105470.0,0.9052]
[1749026010090,0.55309308,105480.0,105470.0,0.9052]
[1749026010289,0.53532688,105480.0,105470.0,0.9052]
[1749026010491,0.53532688,105480.0,105470.0,0.9032]
[1749026010835,0.53532688,105480.0,105470.0,0.61112]
[1749026011063,0.53532688,105480.0,105470.0,0.9042]
[1749026011365,0.55309308,105480.0,105470.0,0.9022]
[1749026011573,0.53532688,105480.0,105470.0,0.9022]
[1749026011773,0.55309308,105480.0,105470.0,0.9022]
[1749026011981,0.53532688,105480.0,105470.0,0.9022]
[1749026013017,0.5530931,105480.0,105470.0,0.9022]
[1749026013221,0.53532688,105480.0,105470.0,0.9022]
[1749026015496,0.55309308,105480.0,105470.0,0.9022]
[1749026015700,0.53532688,105480.0,105470.0,0.9022]
[1749026017194,0.55309308,105480.0,105470.0,0.9022]
[1749026017387,0.53532688,105480.0,105470.0,0.9022]
[1749026019197,0.53533772,105480.0,105470.0,0.9022]
[1749026019408,0.55310392,105480.0,105470.0,0.9022]
[1749026019615,0.53533772,105480.0,105470.0,0.9022]
[1749026020877,0.55310392,105480.0,105470.0,0.9022]
[1749026021099,0.53533772,105480.0,105470.0,0.9022]
[1749026021732,0.55310397,105480.0,105470.0,0.9022]
[1749026021926,0.53533772,105480.0,105470.0,0.9022]
[1749026023966,0.52033772,105480.0,105470.0,0.9022]
[1749026024834,0.53808642,105480.0,105470.0,0.9022]
[1749026024996,0.52033772,105480.0,105470.0,0.9022]
[1749026025620,0.50453772,105480.0,105470.0,0.9022]
[1749026026569,0.52228642,105480.0,105470.0,0.9022]
[1749026026881,0.52228642,105480.0,105470.0,0.918]
[1749026027385,0.52228608,105480.0,105470.0,0.918]
[1749026027613,0.52228608,105480.0,105470.0,0.9022]
[1749026027849,0.58789644,105480.0,105470.0,0.9022]
[1749026028241,0.59925834,105480.0,105470.0,0.9022]
[1749026029379,0.61700704,105480.0,105470.0,0.9022]
[1749026029530,0.59925834,105480.0,105470.0,0.9022]
[1749026029724,0.61700704,105480.0,105470.0,0.9022]
[1749026029919,0.59925834,105480.0,105470.0,0.9022]
[1749026031437,0.59930462,105480.0,105470.0,0.9022]
[1749026031841,0.58794104,105480.0,105470.0,0.9022]
[1749026032099,0.59930462,105480.0,105470.0,0.9022]
[1749026033130,0.61705321,105480.0,105470.0,0.9022]
[1749026033338,0.59930462,105480.0,105470.0,0.9022]
[1749026033559,0.60568963,105480.0,105470.0,0.9022]
[1749026033763,0.60568944,105480.0,105470.0,0.9022]
[1749026033964,0.58794104,105480.0,105470.0,0.9022]
[1749026034380,0.60568944,105480.0,105470.0,0.9022]
[1749026034849,0.58794104,105480.0,105470.0,0.9022]
[1749026035653,0.58794553,105480.0,105470.0,0.9022]
[1749026036101,0.60571132,105480.0,105470.0,0.9022]
[1749026036307,0.62347711,105480.0,105470.0,0.9022]
[1749026036721,0.60571132,105480.0,105470.0,0.9022]
[1749026036934,0.62347711,105480.0,105470.0,0.9022]
[1749026037142,0.60571132,105480.0,105470.0,0.9022]
[1749026037810,0.62347711,105480.0,105470.0,0.9022]
[1749026038030,0.61707693,105480.0,105470.0,0.9022]
[1749026038248,0.63484272,105480.0,105470.0,0.9022]
[1749026038473,0.61707693,105480.0,105470.0,0.9022]
[1749026039791,0.61708105,105480.0,105470.0,0.9022]
[1749026043111,0.63484684,105480.0,105470.0,0.9022]
[1749026043344,0.61708105,105480.0,105470.0,0.9022]
[1749026043587,0.51568055,105480.0,105470.0,0.9183]
[1749026043839,0.52477449,105480.0,105470.0,0.9349]
[1749026046079,0.54253934,105480.0,105470.0,0.9349]
[1749026046304,0.52477449,105480.0,105470.0,0.9349]
[1749026047724,0.54253935,105480.0,105470.0,0.9349]
[1749026047947,0.52477449,105480.0,105470.0,0.9349]
[1749026048847,0.54253935,105480.0,105470.0,0.9349]
[1749026049055,0.52477449,105480.0,105470.0,0.9349]
[1749026050125,0.54253935,105480.0,105470.0,0.9349]
[1749026050328,0.52477449,105480.0,105470.0,0.9349]
[1749026050535,0.52476914,105480.0,105470.0,0.9349]
[1749026052203,0.542534,105480.0,105470.0,0.9349]
[1749026052408,0.52476914,105480.0,105470.0,0.9349]
[1749026052870,0.52476914,105480.0,105470.0,0.9183]
[1749026053078,0.52476914,105480.0,105470.0,0.5184]
[1749026053302,0.52476914,105480.0,105470.0,0.90176]
[1749026053512,0.54253463,105480.0,105470.0,0.90176]
[1749026053722,0.52476914,105480.0,105470.0,0.90176]
[1749026053936,0.53996914,105480.0,105470.0,0.90176]
[1749026054591,0.55773452,105480.0,105470.0,0.90176]
[1749026054774,0.53996892,105480.0,105470.0,0.90176]
[1749026055426,0.55773453,105480.0,105470.0,0.90176]
[1749026055639,0.53996892,105480.0,105470.0,0.90176]
[1749026055852,0.55773453,105480.0,105470.0,0.90176]
[1749026056070,0.52476892,105480.0,105470.0,0.90176]
[1749026057165,0.52476892,105480.0,105470.0,0.91706]
[1749026057584,0.54253416,105480.0,105470.0,0.91706]
[1749026058026,0.52476892,105480.0,105470.0,0.91706]
[1749026059090,0.52476892,105480.0,105470.0,0.90176]
[1749026059778,0.54253445,105480.0,105470.0,0.90176]
[1749026061803,0.56029998,105480.0,105470.0,0.90176]
[1749026062059,0.54253445,105480.0,105470.0,0.90176]
[1749026062769,0.54253632,105480.0,105470.0,0.90176]
[1749026064388,0.56030185,105480.0,105470.0,0.90176]
[1749026065082,0.54253632,105480.0,105470.0,0.90176]
[1749026065548,0.56030185,105480.0,105470.0,0.90176]
[1749026065825,0.54253632,105480.0,105470.0,0.90176]
[1749026066077,0.56030185,105480.0,105470.0,0.90176]
[1749026066294,0.54253632,105480.0,105470.0,0.90176]
[1749026066814,0.53344608,105480.0,105470.0,0.90176]
[1749026067050,0.54253727,105480.0,105470.0,0.90176]
[1749026067519,0.5603028,105480.0,105470.0,0.90176]
[1749026067748,0.54253727,105480.0,105470.0,0.90176]
[1749026068822,0.5603028,105480.0,105470.0,0.90176]
[1749026069032,0.54253727,105480.0,105470.0,0.90176]
[1749026069442,0.56030279,105480.0,105470.0,0.90176]
[1749026069680,0.54253727,105480.0,105470.0,0.90176]
[1749026069896,0.56030279,105480.0,105470.0,0.90176]
[1749026070102,0.54253727,105480.0,105470.0,0.90176]
[1749026070934,0.54253777,105480.0,105470.0,0.90176]
[1749026072086,0.56030329,105480.0,105470.0,0.90176]
[1749026072216,0.54253777,105480.0,105470.0,0.90176]
[1749026073312,0.54253812,105480.0,105470.0,0.90176]
[1749026074994,0.54253822,105480.0,105470.0,0.90176]
[1749026076065,0.54253822,105480.0,105470.0,0.91756]
[1749026078213,0.56030374,105480.0,105470.0,0.91756]
[1749026078639,0.54253822,105480.0,105470.0,0.91756]
[1749026078918,0.53344608,105480.0,105470.0,0.91756]
[1749026079130,0.56030428,105480.0,105470.0,0.91756]
[1749026079347,0.54253888,105480.0,105470.0,0.91756]
[1749026079790,0.54253888,105480.0,105470.0,0.9174]
[1749026081276,0.44742553,105480.0,105470.0,0.9336]
[1749026081704,0.46519081,105480.0,105470.0,0.9336]
[1749026081914,0.44742553,105480.0,105470.0,0.9336]
[1749026082330,0.46519082,105480.0,105470.0,0.9336]
[1749026082549,0.44742553,105480.0,105470.0,0.9336]
[1749026082974,0.44742703,105480.0,105470.0,0.9336]
[1749026084019,0.46519232,105480.0,105470.0,0.9336]
[1749026084845,0.48295762,105480.0,105470.0,0.9336]
[1749026085277,0.46519232,105480.0,105470.0,0.9336]
[1749026085929,0.48295765,105480.0,105470.0,0.9336]
[1749026086133,0.46519232,105480.0,105470.0,0.9336]
[1749026087039,0.45609802,105480.0,105470.0,0.9336]
[1749026087253,0.46519243,105480.0,105470.0,0.9336]
[1749026087459,0.48295776,105480.0,105470.0,0.9336]
[1749026087902,0.46519243,105480.0,105470.0,0.9336]
[1749026088114,0.48295759,105480.0,105470.0,0.9336]
[1749026088330,0.46519243,105480.0,105470.0,0.9336]
[1749026089188,0.48295758,105480.0,105470.0,0.9336]
[1749026089395,0.46519243,105480.0,105470.0,0.9336]
[1749026089809,0.48295758,105480.0,105470.0,0.9336]
[1749026090007,0.46519243,105480.0,105470.0,0.9336]
[1749026090659,0.46519243,105480.0,105470.0,0.93356]
[1749026091304,0.48295676,105480.0,105470.0,0.93356]
[1749026091523,0.46519157,105480.0,105470.0,0.93356]
[1749026091943,0.48295674,105480.0,105470.0,0.93356]
[1749026092174,0.46519157,105480.0,105470.0,0.93356]
[1749026093664,0.48295674,105480.0,105470.0,0.93356]
[1749026093870,0.46519157,105480.0,105470.0,0.93356]
[1749026094924,0.48295674,105480.0,105470.0,0.93356]
[1749026095134,0.46519157,105480.0,105470.0,0.93356]
[1749026095348,0.46519113,105480.0,105470.0,0.93356]
[1749026097250,0.48295628,105480.0,105470.0,0.93356]
[1749026097462,0.46519113,105480.0,105470.0,0.93356]
[1749026098544,0.46519102,105480.0,105470.0,0.93356]
[1749026099387,0.46519102,105480.0,105470.0,0.5504]
[1749026099591,0.46519102,105480.0,105470.0,0.93332]
[1749026102109,0.48295626,105480.0,105470.0,0.93332]
[1749026102547,0.50072143,105480.0,105470.0,0.93332]
[1749026102752,0.48295626,105480.0,105470.0,0.93332]
[1749026102954,0.50072143,105480.0,105470.0,0.93332]
[1749026103162,0.48295626,105480.0,105470.0,0.93332]
[1749026103384,0.57881056,105480.0,105470.0,0.5184]
[1749026103628,0.61121056,105480.0,105470.0,0.6088]
[1749026103851,0.70280061,105480.0,105470.0,0.90128]
[1749026104066,0.70280061,105480.0,105470.0,0.6088]
[1749026104309,0.70280061,105480.0,105470.0,0.90128]
[1749026105582,0.72056697,105480.0,105470.0,0.90128]
[1749026106040,0.70280061,105480.0,105470.0,0.90128]
[1749026106278,0.72056697,105480.0,105470.0,0.90128]
[1749026106741,0.70280061,105480.0,105470.0,0.90128]
[1749026107208,0.72056697,105480.0,105470.0,0.90128]
[1749026107643,0.70280061,105480.0,105470.0,0.90128]
[1749026108077,0.77509058,105480.0,105470.0,0.6088]
[1749026108300,0.70278701,105480.0,105470.0,0.90128]
[1749026110279,0.70277694,105480.0,105470.0,0.90128]
[1749026111832,0.72054381,105480.0,105470.0,0.90128]
[1749026112051,0.70277694,105480.0,105470.0,0.90128]
[1749026112743,0.72054381,105480.0,105470.0,0.90128]
[1749026112962,0.70277694,105480.0,105470.0,0.90128]
[1749026113632,0.72054382,105480.0,105470.0,0.6088]
[1749026113866,0.72054382,105480.0,105470.0,0.90124]
[1749026113867,0.72054385,105480.0,105470.0,0.90124]
[1749026114080,0.70277694,105480.0,105470.0,0.90124]
[1749026114295,0.70274605,105480.0,105470.0,0.90124]
[1749026114515,0.72051293,105480.0,105470.0,0.90124]
[1749026114730,0.70274605,105480.0,105470.0,0.90124]
[1749026115145,0.72051293,105480.0,105470.0,0.90124]
[1749026115352,0.70274605,105480.0,105470.0,0.90124]
[1749026117738,0.72051293,105480.0,105470.0,0.90124]
[1749026117948,0.70274605,105480.0,105470.0,0.90124]
[1749026118380,0.72050102,105480.0,105470.0,0.90124]
[1749026118590,0.70373414,105480.0,105470.0,0.90124]
[1749026119027,0.70386299,105480.0,105470.0,0.90124]
[1749026119234,0.72162987,105480.0,105470.0,0.90124]
[1749026119440,0.70386299,105480.0,105470.0,0.90124]
[1749026119662,0.72162987,105480.0,105470.0,0.90124]
[1749026119872,0.70386299,105480.0,105470.0,0.90124]
[1749026120079,0.72162987,105480.0,105470.0,0.90124]
[1749026120508,0.70386299,105480.0,105470.0,0.90124]
[1749026121771,0.72162987,105480.0,105470.0,0.90124]
[1749026122234,0.70386299,105480.0,105470.0,0.90124]
[1749026122467,0.70385718,105480.0,105470.0,0.90124]
[1749026122917,0.68609184,105480.0,105470.0,0.90124]
[1749026123999,0.70385872,105480.0,105470.0,0.90124]
[1749026124664,0.68609184,105480.0,105470.0,0.90124]
[1749026125310,0.61778872,105480.0,105470.0,0.90124]
[1749026125571,0.60002184,105480.0,105470.0,0.90124]
[1749026125786,0.61778872,105480.0,105470.0,0.90124]
[1749026126013,0.60002184,105480.0,105470.0,0.90124]
[1749026126221,0.70385779,105480.0,105470.0,0.90124]
[1749026126428,0.68609091,105480.0,105470.0,0.90124]
[1749026126843,0.68609032,105480.0,105470.0,0.90124]
[1749026127484,0.7038572,105480.0,105470.0,0.90124]
[1749026128370,0.68609032,105480.0,105470.0,0.90124]
[1749026129005,0.7038572,105480.0,105470.0,0.90124]
[1749026129438,0.68609032,105480.0,105470.0,0.90124]
[1749026129866,0.7038572,105480.0,105470.0,0.90124]
[1749026130099,0.68609032,105480.0,105470.0,0.90124]
[1749026130315,0.7038572,105480.0,105470.0,0.90124]
[1749026130538,0.68609032,105480.0,105470.0,0.90124]
[1749026130992,0.68608995,105480.0,105470.0,0.90124]
[1749026132530,0.70385683,105480.0,105470.0,0.90124]
[1749026132748,0.68608995,105480.0,105470.0,0.90112]
[1749026132960,0.66832464,105480.0,105470.0,0.90112]
[1749026133412,0.68609105,105480.0,105470.0,0.90112]
[1749026133628,0.66832464,105480.0,105470.0,0.90112]
[1749026133842,0.68609105,105480.0,105470.0,0.90112]
[1749026134052,0.66832464,105480.0,105470.0,0.90112]
[1749026135158,0.66834241,105480.0,105470.0,0.90112]
[1749026137052,0.68610882,105480.0,105470.0,0.90112]
[1749026137316,0.68348634,105480.0,105470.0,0.90112]
[1749026137731,0.70125275,105480.0,105470.0,0.90112]
[1749026138146,0.68348634,105480.0,105470.0,0.90112]
[1749026139241,0.68350295,105480.0,105470.0,0.90112]
[1749026139883,0.66835902,105480.0,105470.0,0.90112]
[1749026140093,0.68612591,105480.0,105470.0,0.90112]
[1749026140307,0.66835902,105480.0,105470.0,0.90112]
[1749026141798,0.68612591,105480.0,105470.0,0.90112]
[1749026142007,0.65195902,105480.0,105470.0,0.90112]
[1749026143576,0.66972591,105480.0,105470.0,0.90112]
[1749026143760,0.65195902,105480.0,105470.0,0.90112]
[1749026144011,0.66972591,105480.0,105470.0,0.90112]
[1749026144428,0.65195902,105480.0,105470.0,0.90112]
[1749026145471,0.66972591,105480.0,105470.0,0.90112]
[1749026146506,0.65372591,105480.0,105470.0,0.90112]
[1749026146715,0.6714928,105480.0,105470.0,0.90112]
[1749026146932,0.65372591,105480.0,105470.0,0.90112]
[1749026147147,0.6714928,105480.0,105470.0,0.90112]
[1749026147357,0.65372591,105480.0,105470.0,0.90112]
[1749026147566,0.65372574,105480.0,105470.0,0.90112]
[1749026149044,0.67149263,105480.0,105470.0,0.90112]
[1749026149673,0.65372574,105480.0,105470.0,0.90112]
[1749026151167,0.67149263,105480.0,105470.0,0.90112]
[1749026151621,0.65378743,105480.0,105470.0,0.90112]
[1749026151839,0.56762342,105480.0,105470.0,0.90112]
[1749026152738,0.67155746,105480.0,105470.0,0.90112]
[1749026152953,0.67157565,105480.0,105470.0,0.90112]
[1749026153178,0.5854085,105480.0,105470.0,0.90112]
[1749026153412,0.56764161,105480.0,105470.0,0.90112]
[1749026153629,0.5854085,105480.0,105470.0,0.90112]
[1749026153880,0.56764161,105480.0,105470.0,0.90112]
[1749026154094,0.62168715,105480.0,105470.0,0.90112]
[1749026154301,0.65381558,105480.0,105470.0,0.90112]
[1749026154924,0.67158247,105480.0,105470.0,0.90112]
[1749026155135,0.65381558,105480.0,105470.0,0.90112]
[1749026155338,0.67158247,105480.0,105470.0,0.90112]
[1749026155546,0.65381558,105480.0,105470.0,0.90112]
[1749026156187,0.67158247,105480.0,105470.0,0.90112]
[1749026156418,0.65381558,105480.0,105470.0,0.90112]
[1749026157048,0.67158247,105480.0,105470.0,0.90112]
[1749026157260,0.67158247,105480.0,105470.0,0.5184]
[1749026157488,0.65381558,105480.0,105470.0,0.9315]
[1749026157704,0.65704096,105480.0,105470.0,0.9315]
[1749026157931,0.65704096,105480.0,105470.0,0.5489]
[1749026157932,0.48579555,105480.0,105470.0,0.5489]
[1749026158145,0.48579555,105480.0,105470.0,0.93138]
[1749026159885,0.47669914,105480.0,105470.0,0.93138]
[1749026160110,0.48578565,105480.0,105470.0,0.93138]
[1749026161434,0.50355071,105480.0,105470.0,0.93138]
[1749026161645,0.48578565,105480.0,105470.0,0.93138]
[1749026162077,0.50355066,105480.0,105470.0,0.93138]
[1749026162286,0.48578565,105480.0,105470.0,0.93138]
[1749026162497,0.47669914,105480.0,105470.0,0.93138]
[1749026162739,0.48578376,105480.0,105470.0,0.93138]
[1749026162948,0.46801797,105480.0,105470.0,0.93138]
[1749026163801,0.48578298,105480.0,105470.0,0.93138]
[1749026164038,0.46801797,105480.0,105470.0,0.93138]
[1749026164925,0.48578298,105480.0,105470.0,0.93138]
[1749026165133,0.46801797,105480.0,105470.0,0.93138]
[1749026166825,0.46801592,105480.0,105470.0,0.93138]
[1749026169095,0.48578122,105480.0,105470.0,0.93138]
[1749026169277,0.46801592,105480.0,105470.0,0.93138]
[1749026169675,0.48578122,105480.0,105470.0,0.93138]
[1749026170105,0.46801592,105480.0,105470.0,0.93138]
[1749026171623,0.48578122,105480.0,105470.0,0.93138]
[1749026171840,0.46801592,105480.0,105470.0,0.93138]
[1749026172046,0.48578122,105480.0,105470.0,0.93138]
[1749026172459,0.46801592,105480.0,105470.0,0.93138]
[1749026173082,0.46801592,105480.0,105470.0,0.9313]
[1749026173690,0.48578122,105480.0,105470.0,0.9313]
[1749026173891,0.46801592,105480.0,105470.0,0.9313]
[1749026174637,0.48578122,105480.0,105470.0,0.9313]
[1749026174861,0.48578148,105480.0,105470.0,0.9313]
[1749026175062,0.48578147,105480.0,105470.0,0.9313]
[1749026175340,0.46801618,105480.0,105470.0,0.9313]
[1749026176102,0.48578147,105480.0,105470.0,0.9313]
[1749026176358,0.46801618,105480.0,105470.0,0.9313]
[1749026176766,0.48578147,105480.0,105470.0,0.9313]
[1749026176972,0.46801618,105480.0,105470.0,0.9313]
[1749026177393,0.48578146,105480.0,105470.0,0.9313]
[1749026177809,0.46801618,105480.0,105470.0,0.9313]
[1749026178435,0.48578146,105480.0,105470.0,0.9313]
[1749026178647,0.46801618,105480.0,105470.0,0.9313]
[1749026179054,0.46801745,105480.0,105470.0,0.9313]
[1749026179706,0.48578274,105480.0,105470.0,0.9313]
[1749026179925,0.46801745,105480.0,105470.0,0.9313]
[1749026181200,0.48578274,105480.0,105470.0,0.9313]
[1749026181406,0.46801745,105480.0,105470.0,0.9313]
[1749026182870,0.45025192,105480.0,105470.0,0.9313]
[1749026183276,0.45025439,105480.0,105470.0,0.9313]
[1749026183696,0.44116782,105480.0,105470.0,0.9313]
[1749026189519,0.45026137,105480.0,105470.0,0.9313]
[1749026189721,0.46802665,105480.0,105470.0,0.9313]
[1749026189932,0.45026137,105480.0,105470.0,0.9313]
[1749026191404,0.45026141,105480.0,105470.0,0.9313]
[1749026191714,0.48256755,105480.0,105470.0,0.9313]
[1749026191921,0.46480226,105480.0,105470.0,0.9313]
[1749026192124,0.48256755,105480.0,105470.0,0.9313]
[1749026192322,0.46480226,105480.0,105470.0,0.9313]
[1749026193832,0.20307574,105480.0,105470.0,0.9313]
[1749026195518,0.20307708,105480.0,105470.0,0.9313]
[1749026195731,0.54307708,105480.0,105470.0,0.9313]
[1749026196141,0.56084237,105480.0,105470.0,0.9313]
[1749026196351,0.54307708,105480.0,105470.0,0.9313]
[1749026196554,0.56084237,105480.0,105470.0,0.9313]
[1749026196969,0.54307708,105480.0,105470.0,0.9313]
[1749026197187,0.56084237,105480.0,105470.0,0.9313]
[1749026197827,0.54307708,105480.0,105470.0,0.9313]
[1749026198669,0.56084237,105480.0,105470.0,0.9313]
[1749026199296,0.54307708,105480.0,105470.0,0.9313]
[1749026199756,0.54307717,105480.0,105470.0,0.9313]
[1749026201673,0.56084246,105480.0,105470.0,0.9313]
[1749026201898,0.54307717,105480.0,105470.0,0.9313]
[1749026202077,0.56084246,105480.0,105470.0,0.9313]
[1749026202315,0.54307717,105480.0,105470.0,0.9313]
[1749026202704,0.56084246,105480.0,105470.0,0.9313]
[1749026203167,0.54307717,105480.0,105470.0,0.9313]
[1749026203587,0.56084246,105480.0,105470.0,0.9313]
[1749026203815,0.53398144,105480.0,105470.0,0.9313]
[1749026204025,0.56084242,105480.0,105470.0,0.9313]
[1749026204233,0.54307713,105480.0,105470.0,0.9313]
[1749026204670,0.52853628,105480.0,105470.0,0.9313]
[1749026205930,0.54630157,105480.0,105470.0,0.9313]
[1749026206137,0.52853628,105480.0,105470.0,0.9313]
[1749026207240,0.54630152,105480.0,105470.0,0.9313]
[1749026207452,0.52853628,105480.0,105470.0,0.9313]
[1749026207672,0.54630142,105480.0,105470.0,0.9313]
[1749026207887,0.52853628,105480.0,105470.0,0.9313]
[1749026208102,0.52853604,105480.0,105470.0,0.9313]
[1749026209588,0.49053604,105480.0,105470.0,0.9313]
[1749026211289,0.49998068,105480.0,105470.0,0.9313]
[1749026212157,0.49088523,105480.0,105470.0,0.9313]
[1749026212365,0.49997902,105480.0,105470.0,0.9313]
[1749026216382,0.4999777,105480.0,105470.0,0.9313]
[1749026220570,0.49997702,105480.0,105470.0,0.9313]
[1749026221196,0.49997702,105480.0,105470.0,0.63914]
[1749026221417,0.49997702,105480.0,105470.0,0.91606]
[1749026224123,0.49088523,105480.0,105470.0,0.91606]
[1749026224386,0.49997698,105480.0,105470.0,0.91606]
[1749026224596,0.50003169,105480.0,105470.0,0.91606]
[1749026225640,0.49997698,105480.0,105470.0,0.90050529]
[1749026227667,0.499977,105480.0,105470.0,0.90050529]
[1749026229962,0.499977,105480.0,105470.0,0.51834529]
[1749026230216,0.499977,105480.0,105470.0,0.90030529]
[1749026230217,0.56358261,105480.0,105470.0,0.90030529]
[1749026230435,0.54581785,105480.0,105470.0,0.90030529]
[1749026231301,0.5635833,105480.0,105470.0,0.90030529]
[1749026231508,0.54581785,105480.0,105470.0,0.90030529]
[1749026232101,0.56358332,105480.0,105470.0,0.90030529]
[1749026232348,0.56358333,105480.0,105470.0,0.51834529]
[1749026232568,0.54581785,105480.0,105470.0,0.90030529]
[1749026232786,0.54581785,105480.0,105470.0,0.60842529]
[1749026233004,0.53672608,105480.0,105470.0,0.90030529]
[1749026233630,0.554492,105480.0,105470.0,0.90030529]
[1749026233871,0.53672608,105480.0,105470.0,0.90030529]
[1749026234302,0.554492,105480.0,105470.0,0.90030529]
[1749026235816,0.57225782,105480.0,105470.0,0.90030529]
[1749026236256,0.554492,105480.0,105470.0,0.90030529]
[1749026236468,0.57225782,105480.0,105470.0,0.90030529]
[1749026236716,0.554492,105480.0,105470.0,0.90030529]
[1749026237191,0.539492,105480.0,105470.0,0.90030529]
[1749026237648,0.55725782,105480.0,105470.0,0.90030529]
[1749026237907,0.539492,105480.0,105470.0,0.90030529]
[1749026238174,0.523192,105480.0,105470.0,0.90030529]
[1749026238351,0.554992,105480.0,105470.0,0.90030529]
[1749026238597,0.57275782,105480.0,105470.0,0.90030529]
[1749026238846,0.554992,105480.0,105470.0,0.90030529]
[1749026240004,0.57275782,105480.0,105470.0,0.90030529]
[1749026240219,0.554992,105480.0,105470.0,0.90030529]
[1749026240440,0.57275782,105480.0,105470.0,0.90030529]
[1749026240871,0.554992,105480.0,105470.0,0.90030529]
[1749026241728,0.57275782,105480.0,105470.0,0.90030529]
[1749026242145,0.554992,105480.0,105470.0,0.90030529]
[1749026242355,0.523192,105480.0,105470.0,0.90030529]
[1749026242971,0.538492,105480.0,105470.0,0.90030529]
[1749026243193,0.538492,105480.0,105450.0,0.0166]
[1749026243194,0.38614085,105470.0,105450.0,0.0166]
[1749026243402,0.38614085,105470.0,105460.0,0.60856]
[1749026243609,0.01454085,105450.0,105440.0,0.0154]
[1749026243830,0.01454085,105450.0,105440.0,0.09008]
[1749026243831,0.45039515,105450.0,105440.0,0.09008]
[1749026244022,0.45039515,105450.0,105440.0,0.38188]
[1749026244647,0.45039515,105450.0,105440.0,0.38236119]
[1749026245521,0.4963454,105450.0,105440.0,0.38236119]
[1749026245737,0.47857516,105450.0,105440.0,0.38236119]
[1749026245944,0.56120268,105450.0,105440.0,0.00048119]
[1749026246150,0.58804675,105450.0,105440.0,0.38240119]
[1749026246360,0.53711923,105450.0,105440.0,0.38240119]
[1749026246566,0.51934899,105450.0,105440.0,0.38240119]
[1749026246780,0.51934899,105450.0,105440.0,0.38340119]
[1749026247392,0.51027516,105450.0,105440.0,0.38340119]
[1749026247620,0.528046,105450.0,105440.0,0.38340119]
[1749026247800,0.51027516,105450.0,105440.0,0.38340119]
[1749026248359,0.528046,105450.0,105440.0,0.38340119]
[1749026248558,0.51027516,105450.0,105440.0,0.38340119]
[1749026250264,0.528046,105450.0,105440.0,0.09156119]
[1749026250474,0.528046,105450.0,105440.0,0.38340119]
[1749026250679,0.51027516,105450.0,105440.0,0.38340119]
[1749026250884,0.52804601,105450.0,105440.0,0.90196119]
[1749026251092,0.51087516,105450.0,105440.0,0.90196119]
[1749026251298,0.52864617,105450.0,105440.0,0.90196119]
[1749026251522,0.56373978,105450.0,105440.0,0.52004119]
[1749026251726,0.56373978,105450.0,105420.0,0.10654096]
[1749026251727,0.34,105440.0,105420.0,0.10654096]
[1749026251947,0.45039515,105440.0,105430.0,0.29184]
[1749026254037,0.45139515,105440.0,105430.0,0.29184]
[1749026254450,0.47016771,105440.0,105430.0,0.29184]
[1749026254658,0.45239515,105440.0,105430.0,0.29184]
[1749026255256,0.47016768,105440.0,105430.0,0.29184]
[1749026255463,0.45239515,105440.0,105430.0,0.30704]
[1749026256294,0.47016758,105440.0,105430.0,0.30704]
[1749026256502,0.45239515,105440.0,105430.0,0.30704]